[Event "Betsys MČR v online bleskovém šachu 2021"]
[Site "Chess.com"]
[Date "2021.04.17"]
[Round "7"]
[White "Stalri"]
[Black "Honza_13"]
[Result "1-0"]
[WhiteElo "2194"]
[BlackElo "1940"]
[TimeControl "180+1"]
[EndTime "10:10:32 PDT"]
[Termination "Uživatel Stalri zvítězil na čas"]

1. d4 {[%clk 0:03:00.9]} 1... Nf6 {[%clk 0:02:45.6]} 2. c4 {[%clk 0:03:00.2]}
2... g6 {[%clk 0:02:44.8]} 3. Nc3 {[%clk 0:02:59.6]} 3... Bg7 {[%clk 0:02:43.8]}
4. e4 {[%clk 0:02:59.9]} 4... d6 {[%clk 0:02:43.8]} 5. Be2 {[%clk 0:02:59.4]}
5... O-O {[%clk 0:02:42.4]} 6. Nf3 {[%clk 0:02:59.6]} 6... Nbd7 {[%clk 0:02:42]}
7. O-O {[%clk 0:02:53.9]} 7... e5 {[%clk 0:02:39.5]} 8. Re1 {[%clk 0:02:49.6]}
8... a5 {[%clk 0:02:34.3]} 9. h3 {[%clk 0:02:46.6]} 9... b6 {[%clk 0:02:22.4]}
10. dxe5 {[%clk 0:02:33.9]} 10... dxe5 {[%clk 0:02:20.7]} 11. Bg5 {[%clk
0:02:31.3]} 11... h6 {[%clk 0:02:06.6]} 12. Be3 {[%clk 0:02:30.1]} 12... Bb7
{[%clk 0:02:00.5]} 13. Qc2 {[%clk 0:02:28.7]} 13... Qe7 {[%clk 0:01:58.5]} 14.
a3 {[%clk 0:02:26.9]} 14... a4 {[%clk 0:01:54.9]} 15. Nd5 {[%clk 0:02:16.9]}
15... Bxd5 {[%clk 0:01:34.9]} 16. cxd5 {[%clk 0:02:16.2]} 16... Nc5 {[%clk
0:01:23.9]} 17. Bxc5 {[%clk 0:02:07.9]} 17... bxc5 {[%clk 0:01:14.9]} 18. Bb5
{[%clk 0:02:00.9]} 18... Rfb8 {[%clk 0:00:51.7]} 19. Bxa4 {[%clk 0:01:57.5]}
19... Ra6 {[%clk 0:00:34.8]} 20. Nd2 {[%clk 0:01:55.5]} 20... Ne8 {[%clk
0:00:19.3]} 21. Bxe8 {[%clk 0:01:52.5]} 21... Qxe8 {[%clk 0:00:19.1]} 22. Reb1
{[%clk 0:01:47.9]} 22... Qb5 {[%clk 0:00:16.7]} 23. Nc4 {[%clk 0:01:41.8]} 23...
Qb3 {[%clk 0:00:13]} 24. Qxb3 {[%clk 0:01:41.3]} 24... Rxb3 {[%clk 0:00:13.9]}
25. Re1 {[%clk 0:01:37.3]} 25... Ra4 {[%clk 0:00:12.8]} 26. Rac1 {[%clk
0:01:36.2]} 26... f6 {[%clk 0:00:09.8]} 27. f3 {[%clk 0:01:35.3]} 27... Bf8
{[%clk 0:00:08.1]} 28. Kf2 {[%clk 0:01:35.4]} 28... Kf7 {[%clk 0:00:07]} 29. Re3
{[%clk 0:01:35.7]} 29... Rb8 {[%clk 0:00:03.9]} 30. Ke2 {[%clk 0:01:35.3]} 30...
Bd6 {[%clk 0:00:03.1]} 31. Kd3 {[%clk 0:01:32.5]} 31... g5 {[%clk 0:00:02]} 32.
Rc3 {[%clk 0:01:31.9]} 1-0

[Event "Betsys MČR v online bleskovém šachu 2021"]
[Site "Chess.com"]
[Date "2021.04.17"]
[Round "7"]
[White "ZdenekRomanek"]
[Black "pburak"]
[Result "1-0"]
[WhiteElo "1593"]
[BlackElo "1181"]
[TimeControl "180+1"]
[EndTime "10:10:32 PDT"]
[Termination "Uživatel ZdenekRomanek zvítězil na čas"]

1. d4 {[%clk 0:03:00.9]} 1... Nf6 {[%clk 0:02:57.9]} 2. c4 {[%clk 0:03:00.3]}
2... e6 {[%clk 0:02:56.7]} 3. Nc3 {[%clk 0:02:59.5]} 3... Bb4 {[%clk 0:02:55.6]}
4. Nf3 {[%clk 0:02:58.4]} 4... O-O {[%clk 0:02:54.2]} 5. e3 {[%clk 0:02:58]}
5... c5 {[%clk 0:02:50.6]} 6. a3 {[%clk 0:02:53.1]} 6... Ba5 {[%clk 0:02:47.6]}
7. Be2 {[%clk 0:02:51.4]} 7... cxd4 {[%clk 0:02:44.6]} 8. exd4 {[%clk
0:02:50.3]} 8... Bxc3+ {[%clk 0:02:34.2]} 9. bxc3 {[%clk 0:02:49.3]} 9... d6
{[%clk 0:02:33]} 10. O-O {[%clk 0:02:48.1]} 10... Nbd7 {[%clk 0:02:25.5]} 11.
Bd3 {[%clk 0:02:42]} 11... b6 {[%clk 0:02:20.8]} 12. Bc2 {[%clk 0:02:39.2]}
12... Bb7 {[%clk 0:02:19.1]} 13. Re1 {[%clk 0:02:35.6]} 13... Re8 {[%clk
0:02:10.5]} 14. Qd3 {[%clk 0:02:33.6]} 14... Qc7 {[%clk 0:01:37.2]} 15. Bg5
{[%clk 0:02:15.6]} 15... d5 {[%clk 0:01:30.3]} 16. cxd5 {[%clk 0:02:02.4]} 16...
Bxd5 {[%clk 0:01:25.6]} 17. Ne5 {[%clk 0:01:59.2]} 17... g6 {[%clk 0:00:46.2]}
18. Rac1 {[%clk 0:01:46.6]} 18... Be4 {[%clk 0:00:27.5]} 19. Rxe4 {[%clk
0:01:42.7]} 19... Nxe4 {[%clk 0:00:26.2]} 20. Qxe4 {[%clk 0:01:37.5]} 20... Nxe5
{[%clk 0:00:19]} 21. Qxe5 {[%clk 0:01:30.1]} 21... Qxe5 {[%clk 0:00:17.3]} 22.
dxe5 {[%clk 0:01:29]} 22... Rac8 {[%clk 0:00:13.9]} 23. Ba4 {[%clk 0:01:17.2]}
23... Rf8 {[%clk 0:00:06.3]} 24. Be7 {[%clk 0:01:13.8]} 1-0

[Event "Betsys MČR v online bleskovém šachu 2021"]
[Site "Chess.com"]
[Date "2021.04.17"]
[Round "7"]
[White "Simago"]
[Black "Ladislav1969"]
[Result "0-1"]
[WhiteElo "2092"]
[BlackElo "2317"]
[TimeControl "180+1"]
[EndTime "10:10:33 PDT"]
[Termination "Uživatel Ladislav1969 zvítězil po vzdání soupeře"]

1. e4 {[%clk 0:02:45]} 1... c5 {[%clk 0:02:59.2]} 2. Nf3 {[%clk 0:02:43.8]} 2...
e6 {[%clk 0:02:59.8]} 3. c3 {[%clk 0:02:43.1]} 3... Nf6 {[%clk 0:02:58.7]} 4. e5
{[%clk 0:02:42.9]} 4... Nd5 {[%clk 0:02:59.4]} 5. Bc4 {[%clk 0:02:42.1]} 5...
Nb6 {[%clk 0:02:58]} 6. Bb3 {[%clk 0:02:42]} 6... d5 {[%clk 0:02:57.8]} 7. exd6
{[%clk 0:02:41.3]} 7... Bxd6 {[%clk 0:02:57]} 8. O-O {[%clk 0:02:41.4]} 8... c4
{[%clk 0:02:51.2]} 9. Bc2 {[%clk 0:02:37.7]} 9... Nc6 {[%clk 0:02:34.8]} 10. d3
{[%clk 0:02:36.1]} 10... cxd3 {[%clk 0:02:34.4]} 11. Bxd3 {[%clk 0:02:35.6]}
11... Ne5 {[%clk 0:02:15.5]} 12. Nxe5 {[%clk 0:02:04.4]} 12... Bxe5 {[%clk
0:02:14.7]} 13. f4 {[%clk 0:02:01.8]} 13... Bf6 {[%clk 0:01:57.9]} 14. f5 {[%clk
0:02:00.3]} 14... O-O {[%clk 0:01:52.5]} 15. Be3 {[%clk 0:01:44.4]} 15... exf5
{[%clk 0:01:48.8]} 16. Na3 {[%clk 0:01:37.3]} 16... Nd5 {[%clk 0:01:40.9]} 17.
Bc5 {[%clk 0:01:24]} 17... Be7 {[%clk 0:01:40.7]} 18. Bxe7 {[%clk 0:01:15.8]}
18... Qxe7 {[%clk 0:01:38.9]} 19. Qf3 {[%clk 0:01:07.6]} 19... Nxc3 {[%clk
0:01:18.2]} 20. bxc3 {[%clk 0:00:43.1]} 20... Qxa3 {[%clk 0:01:16.7]} 21. Bc4
{[%clk 0:00:27]} 21... Qc5+ {[%clk 0:01:14]} 22. Kh1 {[%clk 0:00:26.5]} 22...
Qxc4 {[%clk 0:01:14.3]} 23. Rab1 {[%clk 0:00:25.8]} 23... Be6 {[%clk 0:01:06.6]}
24. Qxb7 {[%clk 0:00:21.1]} 24... Bd5 {[%clk 0:01:00.3]} 25. Qc7 {[%clk
0:00:18.8]} 25... Qxc7 {[%clk 0:00:58.9]} 0-1

[Event "Betsys MČR v online bleskovém šachu 2021"]
[Site "Chess.com"]
[Date "2021.04.17"]
[Round "7"]
[White "VitaRasik"]
[Black "KdybyNecoTakNic"]
[Result "1-0"]
[WhiteElo "2614"]
[BlackElo "2323"]
[TimeControl "180+1"]
[EndTime "10:10:34 PDT"]
[Termination "Uživatel VitaRasik zvítězil matem"]

1. e4 {[%clk 0:03:00.9]} 1... e6 {[%clk 0:02:59.8]} 2. Bb5 {[%clk 0:02:59.4]}
2... Ne7 {[%clk 0:02:52.7]} 3. d4 {[%clk 0:02:49.3]} 3... Ng6 {[%clk 0:02:45.1]}
4. Nf3 {[%clk 0:02:41.2]} 4... c5 {[%clk 0:02:44.6]} 5. O-O {[%clk 0:02:27.5]}
5... Be7 {[%clk 0:02:37.8]} 6. c3 {[%clk 0:02:22.8]} 6... O-O {[%clk 0:02:34.5]}
7. Re1 {[%clk 0:02:20.1]} 7... Nc6 {[%clk 0:02:30.3]} 8. d5 {[%clk 0:02:13.5]}
8... Nce5 {[%clk 0:02:15.8]} 9. Nxe5 {[%clk 0:02:11.2]} 9... Nxe5 {[%clk
0:02:15.8]} 10. f4 {[%clk 0:02:01]} 10... Ng6 {[%clk 0:02:15.7]} 11. d6 {[%clk
0:01:52.4]} 11... Bh4 {[%clk 0:02:04.7]} 12. g3 {[%clk 0:01:51.7]} 12... Bf6
{[%clk 0:02:04.2]} 13. e5 {[%clk 0:01:51.4]} 13... a6 {[%clk 0:01:55.3]} 14. Bf1
{[%clk 0:01:49.2]} 14... b5 {[%clk 0:01:50.3]} 15. Bg2 {[%clk 0:01:47.3]} 15...
Rb8 {[%clk 0:01:50.7]} 16. exf6 {[%clk 0:01:44.3]} 16... Qxf6 {[%clk 0:01:50.6]}
17. Nd2 {[%clk 0:01:40.9]} 17... c4 {[%clk 0:01:44.3]} 18. Ne4 {[%clk
0:01:38.7]} 18... Qf5 {[%clk 0:01:42.9]} 19. Nf2 {[%clk 0:01:21.4]} 19... Bb7
{[%clk 0:01:38.7]} 20. Bxb7 {[%clk 0:01:17.6]} 20... Rxb7 {[%clk 0:01:38.5]} 21.
Be3 {[%clk 0:01:04.8]} 21... h5 {[%clk 0:01:33.8]} 22. Qf3 {[%clk 0:00:57.6]}
22... h4 {[%clk 0:01:31.7]} 23. g4 {[%clk 0:00:52.9]} 23... Qd5 {[%clk
0:01:30.1]} 24. Qxd5 {[%clk 0:00:52.1]} 24... exd5 {[%clk 0:01:30.3]} 25. f5
{[%clk 0:00:48.9]} 25... Ne5 {[%clk 0:01:29.9]} 26. Kg2 {[%clk 0:00:45.7]} 26...
g6 {[%clk 0:01:30.2]} 27. Bh6 {[%clk 0:00:43.2]} 27... Re8 {[%clk 0:01:29.7]}
28. Bf4 {[%clk 0:00:41.8]} 28... f6 {[%clk 0:01:28.9]} 29. fxg6 {[%clk
0:00:40.4]} 29... Kg7 {[%clk 0:01:28.9]} 30. g5 {[%clk 0:00:39.6]} 30... Kxg6
{[%clk 0:01:26.4]} 31. gxf6 {[%clk 0:00:39.3]} 31... Kxf6 {[%clk 0:01:26.6]} 32.
Bxe5+ {[%clk 0:00:39.4]} 32... Kf5 {[%clk 0:01:21.9]} 33. Bd4 {[%clk 0:00:38.8]}
33... Rg8+ {[%clk 0:01:21.7]} 34. Kh3 {[%clk 0:00:37]} 34... Rbb8 {[%clk
0:01:22]} 35. Re5+ {[%clk 0:00:36.7]} 35... Kf4 {[%clk 0:01:20]} 36. Rf1 {[%clk
0:00:35.6]} 36... Rbe8 {[%clk 0:01:09.9]} 37. Nd3# {[%clk 0:00:33.3]} 1-0

[Event "Betsys MČR v online bleskovém šachu 2021"]
[Site "Chess.com"]
[Date "2021.04.17"]
[Round "7"]
[White "adiklan"]
[Black "Kijonker"]
[Result "1-0"]
[WhiteElo "1910"]
[BlackElo "1465"]
[TimeControl "180+1"]
[EndTime "10:10:35 PDT"]
[Termination "Uživatel adiklan zvítězil po vzdání soupeře"]

1. d4 {[%clk 0:03:00.9]} 1... e6 {[%clk 0:02:58.7]} 2. g3 {[%clk 0:02:57.3]}
2... Nf6 {[%clk 0:02:57.4]} 3. Bg2 {[%clk 0:02:54.9]} 3... c5 {[%clk 0:02:57.2]}
4. Nf3 {[%clk 0:02:52.3]} 4... Nc6 {[%clk 0:02:54.2]} 5. O-O {[%clk 0:02:50.4]}
5... cxd4 {[%clk 0:02:34]} 6. Nxd4 {[%clk 0:02:48.4]} 6... Nxd4 {[%clk 0:02:34]}
7. Qxd4 {[%clk 0:02:48.6]} 7... d5 {[%clk 0:02:33.5]} 8. c4 {[%clk 0:02:32.5]}
8... dxc4 {[%clk 0:02:07.3]} 9. Qxd8+ {[%clk 0:02:26.7]} 9... Kxd8 {[%clk
0:02:07.1]} 10. Rd1+ {[%clk 0:02:24.9]} 10... Bd7 {[%clk 0:02:06.9]} 11. Bxb7
{[%clk 0:02:24.8]} 11... Rb8 {[%clk 0:02:06]} 12. Ba6 {[%clk 0:02:21.8]} 12...
Bc5 {[%clk 0:02:00.5]} 13. Nc3 {[%clk 0:02:11.9]} 13... Ke7 {[%clk 0:01:25.7]}
14. Bxc4 {[%clk 0:01:59.2]} 14... Rb4 {[%clk 0:01:11.1]} 15. b3 {[%clk
0:01:50.9]} 15... Rd8 {[%clk 0:00:46.3]} 16. a4 {[%clk 0:01:31]} 16... a5 {[%clk
0:00:32.6]} 17. Ba3 {[%clk 0:01:29.9]} 17... Rdb8 {[%clk 0:00:16.8]} 18. Bxb4
{[%clk 0:01:26.9]} 18... Bxb4 {[%clk 0:00:15.8]} 19. Nb5 {[%clk 0:01:18.6]}
19... Bxb5 {[%clk 0:00:13.7]} 20. Bxb5 {[%clk 0:01:19.5]} 20... Nd5 {[%clk
0:00:06.6]} 21. Rd3 {[%clk 0:01:01.3]} 1-0

[Event "Betsys MČR v online bleskovém šachu 2021"]
[Site "Chess.com"]
[Date "2021.04.17"]
[Round "7"]
[White "TheRigos"]
[Black "FormerProdigy"]
[Result "0-1"]
[WhiteElo "2571"]
[BlackElo "2865"]
[TimeControl "180+1"]
[EndTime "10:10:38 PDT"]
[Termination "Uživatel FormerProdigy zvítězil po vzdání soupeře"]

1. e4 {[%clk 0:03:00.9]} 1... c5 {[%clk 0:03:00]} 2. Nf3 {[%clk 0:03:01.1]} 2...
d6 {[%clk 0:03:00.4]} 3. d4 {[%clk 0:03:01.8]} 3... cxd4 {[%clk 0:03:01.2]} 4.
Qxd4 {[%clk 0:03:02.7]} 4... Nf6 {[%clk 0:03:01.3]} 5. Nc3 {[%clk 0:03:01.8]}
5... Nc6 {[%clk 0:03:00]} 6. Bb5 {[%clk 0:03:01.9]} 6... Nd7 {[%clk 0:02:59.6]}
7. Bxc6 {[%clk 0:02:54.5]} 7... bxc6 {[%clk 0:03:00.5]} 8. Bg5 {[%clk
0:02:54.5]} 8... h6 {[%clk 0:02:47.1]} 9. Bh4 {[%clk 0:02:54.8]} 9... Qb6 {[%clk
0:02:43.3]} 10. O-O-O {[%clk 0:02:45.7]} 10... Qxd4 {[%clk 0:02:33.6]} 11. Nxd4
{[%clk 0:02:46.6]} 11... Bb7 {[%clk 0:02:33.7]} 12. Rhe1 {[%clk 0:02:42.8]}
12... g5 {[%clk 0:02:24.9]} 13. Bg3 {[%clk 0:02:43]} 13... Bg7 {[%clk
0:02:25.1]} 14. Nf5 {[%clk 0:02:35.8]} 14... Be5 {[%clk 0:02:25.1]} 15. h4
{[%clk 0:01:53.7]} 15... Bxg3 {[%clk 0:02:09.5]} 16. fxg3 {[%clk 0:01:51.5]}
16... Ne5 {[%clk 0:02:07]} 17. Ne2 {[%clk 0:01:27.3]} 17... Bc8 {[%clk
0:01:58.5]} 18. hxg5 {[%clk 0:01:12.5]} 18... Bxf5 {[%clk 0:01:56.3]} 19. exf5
{[%clk 0:01:12.2]} 19... hxg5 {[%clk 0:01:57.2]} 20. Nd4 {[%clk 0:01:06.9]}
20... Kd7 {[%clk 0:01:35]} 21. Nf3 {[%clk 0:00:47.6]} 21... Nxf3 {[%clk
0:01:30.2]} 22. gxf3 {[%clk 0:00:47.9]} 22... Rh3 {[%clk 0:01:25.1]} 23. Rg1
{[%clk 0:00:47.6]} 23... Rb8 {[%clk 0:01:21.2]} 24. c4 {[%clk 0:00:40]} 24...
Rh2 {[%clk 0:01:16.2]} 25. c5 {[%clk 0:00:06.8]} 25... Rbxb2 {[%clk 0:01:15.1]}
26. Rd3 {[%clk 0:00:06.4]} 26... Rxa2 {[%clk 0:01:12.2]} 27. Kb1 {[%clk
0:00:05.8]} 27... Rhb2+ {[%clk 0:01:11.3]} 0-1

[Event "Betsys MČR v online bleskovém šachu 2021"]
[Site "Chess.com"]
[Date "2021.04.17"]
[Round "7"]
[White "Clockwork7orange"]
[Black "hoacin"]
[Result "0-1"]
[WhiteElo "2316"]
[BlackElo "2553"]
[TimeControl "180+1"]
[EndTime "10:10:39 PDT"]
[Termination "Uživatel hoacin zvítězil matem"]

1. Nc3 {[%clk 0:02:53.6]} 1... e5 {[%clk 0:02:59.4]} 2. e4 {[%clk 0:02:54.5]}
2... Nf6 {[%clk 0:02:58.5]} 3. Nf3 {[%clk 0:02:55.4]} 3... Nc6 {[%clk
0:02:57.6]} 4. a3 {[%clk 0:02:55.8]} 4... d5 {[%clk 0:02:54.1]} 5. exd5 {[%clk
0:02:55.7]} 5... Nxd5 {[%clk 0:02:53.9]} 6. Bb5 {[%clk 0:02:56.6]} 6... Nxc3
{[%clk 0:02:52.8]} 7. bxc3 {[%clk 0:02:57.5]} 7... Bd6 {[%clk 0:02:51.5]} 8. d4
{[%clk 0:02:58]} 8... exd4 {[%clk 0:02:50.8]} 9. cxd4 {[%clk 0:02:58.9]} 9...
O-O {[%clk 0:02:43.5]} 10. h3 {[%clk 0:02:59.5]} 10... Re8+ {[%clk 0:02:42.6]}
11. Be3 {[%clk 0:02:59.5]} 11... a6 {[%clk 0:02:32.8]} 12. Ba4 {[%clk
0:02:30.9]} 12... b5 {[%clk 0:02:30.8]} 13. Bb3 {[%clk 0:02:31]} 13... Na5
{[%clk 0:02:30]} 14. Ba2 {[%clk 0:02:22.5]} 14... Be6 {[%clk 0:02:20.3]} 15.
Bxe6 {[%clk 0:02:18.5]} 15... Rxe6 {[%clk 0:02:19.2]} 16. O-O {[%clk 0:02:17.1]}
16... Nc4 {[%clk 0:02:18.4]} 17. Bc1 {[%clk 0:02:09.8]} 17... Rg6 {[%clk
0:02:15.8]} 18. a4 {[%clk 0:02:02.2]} 18... Qd7 {[%clk 0:02:11.4]} 19. Kh1
{[%clk 0:02:00.5]} 19... bxa4 {[%clk 0:02:07.6]} 20. c3 {[%clk 0:01:31.2]} 20...
a3 {[%clk 0:02:01.1]} 21. Re1 {[%clk 0:01:11]} 21... h6 {[%clk 0:01:49.8]} 22.
Nd2 {[%clk 0:00:39.6]} 22... Qb5 {[%clk 0:01:30.2]} 23. Qf3 {[%clk 0:00:31.3]}
23... Re8 {[%clk 0:01:22.2]} 24. Rf1 {[%clk 0:00:21]} 24... Rf6 {[%clk 0:01:12]}
25. Qd3 {[%clk 0:00:18.1]} 25... Nxd2 {[%clk 0:00:54.6]} 26. Qxd2 {[%clk
0:00:19]} 26... Qxf1# {[%clk 0:00:53.4]} 0-1

[Event "Betsys MČR v online bleskovém šachu 2021"]
[Site "Chess.com"]
[Date "2021.04.17"]
[Round "7"]
[White "mysacek1414"]
[Black "Klapuch05"]
[Result "1-0"]
[WhiteElo "1861"]
[BlackElo "1567"]
[TimeControl "180+1"]
[EndTime "10:10:42 PDT"]
[Termination "Uživatel mysacek1414 zvítězil matem"]

1. e4 {[%clk 0:03:00.9]} 1... c5 {[%clk 0:02:59.8]} 2. Nf3 {[%clk 0:02:58.5]}
2... d6 {[%clk 0:02:59.7]} 3. d4 {[%clk 0:02:59]} 3... cxd4 {[%clk 0:03:00.4]}
4. Nxd4 {[%clk 0:02:59.9]} 4... Nf6 {[%clk 0:03:00.7]} 5. Bc4 {[%clk 0:02:59.9]}
5... g6 {[%clk 0:02:58.2]} 6. Nc3 {[%clk 0:02:59.4]} 6... Bg7 {[%clk 0:02:58.5]}
7. O-O {[%clk 0:02:59.7]} 7... O-O {[%clk 0:02:58.5]} 8. h3 {[%clk 0:02:58.4]}
8... a6 {[%clk 0:02:58.9]} 9. a4 {[%clk 0:02:57.1]} 9... Nc6 {[%clk 0:02:59.1]}
10. Be3 {[%clk 0:02:55.9]} 10... Bd7 {[%clk 0:02:55.2]} 11. Bb3 {[%clk
0:02:55.4]} 11... Rc8 {[%clk 0:02:54.7]} 12. f4 {[%clk 0:02:46.3]} 12... e6
{[%clk 0:02:46.8]} 13. Qd2 {[%clk 0:02:41.3]} 13... Na5 {[%clk 0:02:37.8]} 14.
Rad1 {[%clk 0:02:32.5]} 14... Nxb3 {[%clk 0:02:32.9]} 15. Nxb3 {[%clk
0:02:31.4]} 15... Rxc3 {[%clk 0:02:21.8]} 16. Qxc3 {[%clk 0:02:28.1]} 16... Nxe4
{[%clk 0:02:21.7]} 17. Qb4 {[%clk 0:02:19.7]} 17... Bc6 {[%clk 0:02:13.2]} 18.
Nd4 {[%clk 0:02:11.4]} 18... a5 {[%clk 0:01:54.2]} 19. Nxc6 {[%clk 0:02:09.5]}
19... axb4 {[%clk 0:01:54.3]} 20. Nxd8 {[%clk 0:02:08.4]} 20... Rxd8 {[%clk
0:01:54.5]} 21. Bd4 {[%clk 0:02:05.7]} 21... Ng3 {[%clk 0:01:44.1]} 22. Rfe1
{[%clk 0:01:58.8]} 22... Bh6 {[%clk 0:01:36.4]} 23. Be5 {[%clk 0:01:50.5]} 23...
Nf5 {[%clk 0:01:16.9]} 24. g4 {[%clk 0:01:45.5]} 24... Nh4 {[%clk 0:01:05.9]}
25. Kf2 {[%clk 0:01:45.8]} 25... d5 {[%clk 0:00:54.6]} 26. Bf6 {[%clk
0:01:45.8]} 26... Rc8 {[%clk 0:00:43.8]} 27. Bxh4 {[%clk 0:01:46.1]} 27... Rxc2+
{[%clk 0:00:43.5]} 28. Re2 {[%clk 0:01:46.6]} 28... Rc4 {[%clk 0:00:42.8]} 29.
Bg3 {[%clk 0:01:43.4]} 29... Bxf4 {[%clk 0:00:42.9]} 30. Bxf4 {[%clk 0:01:43.6]}
30... Rxf4+ {[%clk 0:00:43.8]} 31. Kg3 {[%clk 0:01:44.4]} 31... Rc4 {[%clk
0:00:43.9]} 32. Rd3 {[%clk 0:01:42]} 32... Rc5 {[%clk 0:00:40.7]} 33. Rd4 {[%clk
0:01:40.5]} 33... b3 {[%clk 0:00:35.6]} 34. Rd3 {[%clk 0:01:39.8]} 34... Ra5
{[%clk 0:00:33.4]} 35. Rxb3 {[%clk 0:01:39.5]} 35... Rxa4 {[%clk 0:00:33.5]} 36.
Rxb7 {[%clk 0:01:40]} 36... Kg7 {[%clk 0:00:33.3]} 37. Rf2 {[%clk 0:01:39.5]}
37... Kh6 {[%clk 0:00:28.5]} 38. Rfxf7 {[%clk 0:01:38]} 38... Rd4 {[%clk
0:00:28.7]} 39. h4 {[%clk 0:01:25.6]} 39... Rd3+ {[%clk 0:00:26.9]} 40. Kf4
{[%clk 0:01:20.5]} 40... g5+ {[%clk 0:00:27.8]} 41. hxg5+ {[%clk 0:01:19.6]}
41... Kg6 {[%clk 0:00:24.4]} 42. Rf6# {[%clk 0:01:20.1]} 1-0

[Event "Betsys MČR v online bleskovém šachu 2021"]
[Site "Chess.com"]
[Date "2021.04.17"]
[Round "7"]
[White "JindrichT_CZE"]
[Black "veronikam"]
[Result "1-0"]
[WhiteElo "2054"]
[BlackElo "1482"]
[TimeControl "180+1"]
[EndTime "10:10:44 PDT"]
[Termination "Uživatel JindrichT_CZE zvítězil po vzdání soupeře"]

1. e4 {[%clk 0:02:35.7]} 1... c5 {[%clk 0:02:58.5]} 2. c4 {[%clk 0:02:31.4]}
2... Nc6 {[%clk 0:02:57.3]} 3. g3 {[%clk 0:02:30.4]} 3... g6 {[%clk 0:02:56.5]}
4. Bg2 {[%clk 0:02:29.1]} 4... Bg7 {[%clk 0:02:56.1]} 5. Nc3 {[%clk 0:02:28.6]}
5... d6 {[%clk 0:02:54.5]} 6. Nge2 {[%clk 0:02:28.5]} 6... Nf6 {[%clk
0:02:51.4]} 7. d3 {[%clk 0:02:25.5]} 7... a6 {[%clk 0:02:48.4]} 8. h3 {[%clk
0:02:25.4]} 8... Qc7 {[%clk 0:02:43.4]} 9. Be3 {[%clk 0:02:24.7]} 9... Rb8
{[%clk 0:02:40.9]} 10. Qd2 {[%clk 0:02:24.2]} 10... b5 {[%clk 0:02:39.5]} 11.
cxb5 {[%clk 0:02:23.5]} 11... axb5 {[%clk 0:02:39.1]} 12. d4 {[%clk 0:02:20.2]}
12... O-O {[%clk 0:02:23.1]} 13. dxc5 {[%clk 0:02:15.2]} 13... b4 {[%clk
0:02:11.5]} 14. Nd5 {[%clk 0:02:13.4]} 14... Nxd5 {[%clk 0:01:58.2]} 15. exd5
{[%clk 0:02:12.7]} 15... Ne5 {[%clk 0:01:55.6]} 16. c6 {[%clk 0:02:06.1]} 16...
Ba6 {[%clk 0:01:52.5]} 17. O-O {[%clk 0:02:00.2]} 17... Nd3 {[%clk 0:01:44.9]}
18. Rab1 {[%clk 0:01:34.6]} 18... e6 {[%clk 0:01:30]} 19. b3 {[%clk 0:01:18.7]}
19... Ne5 {[%clk 0:01:23.5]} 20. Rfd1 {[%clk 0:01:12.6]} 20... Bc8 {[%clk
0:01:12.8]} 21. Nf4 {[%clk 0:01:10.3]} 21... Kh8 {[%clk 0:00:53.7]} 22. dxe6
{[%clk 0:01:06.4]} 22... fxe6 {[%clk 0:00:51.7]} 23. Qxd6 {[%clk 0:01:05.5]}
23... Qxd6 {[%clk 0:00:51.7]} 24. Rxd6 {[%clk 0:01:05.2]} 24... Re8 {[%clk
0:00:47.1]} 25. c7 {[%clk 0:00:59.9]} 25... Rb5 {[%clk 0:00:22]} 26. Rd8 {[%clk
0:00:59.7]} 1-0

[Event "Betsys MČR v online bleskovém šachu 2021"]
[Site "Chess.com"]
[Date "2021.04.17"]
[Round "7"]
[White "FrantisekP"]
[Black "adasmrazek"]
[Result "1-0"]
[WhiteElo "1627"]
[BlackElo "1305"]
[TimeControl "180+1"]
[EndTime "10:10:44 PDT"]
[Termination "Uživatel FrantisekP zvítězil po vzdání soupeře"]

1. d4 {[%clk 0:03:00.9]} 1... Nf6 {[%clk 0:01:25.1]} 2. Bf4 {[%clk 0:02:56]}
2... g6 {[%clk 0:01:24.4]} 3. Nf3 {[%clk 0:02:50.6]} 3... Bg7 {[%clk 0:01:24.6]}
4. e3 {[%clk 0:02:50.5]} 4... O-O {[%clk 0:01:23]} 5. c3 {[%clk 0:02:48.5]} 5...
Nc6 {[%clk 0:01:22.5]} 6. Be2 {[%clk 0:02:47.9]} 6... e6 {[%clk 0:01:22.6]} 7.
Nbd2 {[%clk 0:02:47]} 7... d5 {[%clk 0:01:22.7]} 8. Bg5 {[%clk 0:02:44.5]} 8...
Bd7 {[%clk 0:01:22.6]} 9. Ne5 {[%clk 0:02:38.1]} 9... Nxe5 {[%clk 0:01:21.2]}
10. dxe5 {[%clk 0:02:37.7]} 10... c5 {[%clk 0:01:14.6]} 11. exf6 {[%clk
0:02:33.1]} 11... Bxf6 {[%clk 0:01:15.5]} 12. Bxf6 {[%clk 0:02:33.3]} 12... Qxf6
{[%clk 0:01:16.4]} 13. Nf3 {[%clk 0:02:29.8]} 13... Rac8 {[%clk 0:01:13.4]} 14.
O-O {[%clk 0:02:27]} 14... a6 {[%clk 0:01:07.8]} 15. h3 {[%clk 0:02:27]} 15...
b5 {[%clk 0:01:06.1]} 16. Rc1 {[%clk 0:02:23]} 16... c4 {[%clk 0:01:05.3]} 17.
Qd4 {[%clk 0:02:22.2]} 17... Qxd4 {[%clk 0:01:03.8]} 18. exd4 {[%clk 0:02:18]}
18... Bc6 {[%clk 0:01:04.7]} 19. Ne5 {[%clk 0:02:17.9]} 19... Bb7 {[%clk
0:01:02.8]} 20. Rfe1 {[%clk 0:02:10.2]} 20... f5 {[%clk 0:00:57.7]} 21. Bd1
{[%clk 0:02:07.6]} 21... Rfe8 {[%clk 0:00:54.8]} 22. Bc2 {[%clk 0:02:03.1]}
22... Rf8 {[%clk 0:00:43.6]} 23. f4 {[%clk 0:01:54.4]} 23... Rce8 {[%clk
0:00:37.9]} 24. Kf2 {[%clk 0:01:51.7]} 24... Kg7 {[%clk 0:00:33.8]} 25. h4
{[%clk 0:01:45.7]} 25... h5 {[%clk 0:00:32.5]} 26. g3 {[%clk 0:01:42.9]} 26...
Re7 {[%clk 0:00:31.1]} 27. a4 {[%clk 0:01:36.8]} 27... Bc8 {[%clk 0:00:20.7]}
28. axb5 {[%clk 0:01:32.7]} 28... axb5 {[%clk 0:00:21.6]} 29. Ra1 {[%clk
0:01:32.8]} 29... Rb7 {[%clk 0:00:19.6]} 30. Ra8 {[%clk 0:01:27]} 30... Rd8
{[%clk 0:00:17.8]} 31. Rea1 {[%clk 0:01:25.2]} 31... Rc7 {[%clk 0:00:15.9]} 32.
R1a7 {[%clk 0:01:18.2]} 32... Rxa7 {[%clk 0:00:15]} 33. Rxa7+ {[%clk 0:01:17.8]}
33... Kf8 {[%clk 0:00:13.2]} 34. Nxg6+ {[%clk 0:01:14.5]} 1-0